Cogmind - Beta 11 @@@ ROGUE MODE // 2022.03.20 @ 05:06:54 Player: leiavoia Result: Destroyed by G-73 Enforcer with Heavy Laser Performance ------------- Evolutions (7) 3500 Regions Visited (14) 2800 Robots Destroyed (190) 950 Value Destroyed (7442) 7442 Prototype IDs (29) 580 Alien Tech Used (0) 0 Bonus (3839) 3839 TOTAL SCORE: 19111 Bonus ------- High Alert Combat Kills 535 Follower Combat Kills 1507 Entered Garrisons 200 Used RIF Installer 500 Met R17 at Cetus 500 Hacked Protovariant 500 Scanned by Researcher 500 Friendly Fire -403 Cogmind --------- Core Integrity 0/1300 Matter 220/300 Energy 130/150 System Corruption 35% Temperature Hot (261) Movement Walking (108) Location -3/Testing Parts ------- > --- POWER (2) -------- Micro Antimatter Reactor > --- PROPULSION (6) --- Myomer Leg Myomer Leg Myomer Leg Experimental Biometal Leg Experimental Biometal Leg Electron Diverter > --- UTILITY (10) ----- Large Storage Unit Enhanced Optical Array Enhanced Optical Array > --- WEAPON (3) ------- Heavy Neutron Cannon Faulty Tactical Quantum Warhead > --- INVENTORY (15) --- Myomer Leg Huge Storage Unit Ionic Axe Peak State ------------ > --- POWER ------------ Neutrino Core Particle Reactor > --- PROPULSION ------- Centrium Heavy Treads Centrium Heavy Treads > --- UTILITY ---------- Advanced Heat Sink Advanced Heat Sink Huge Storage Unit Armor Integrity Analyzer Improved Kinecellerator Improved Weapon Cycler Centrium Medium Armor Plating Focal Shield > --- WEAPON ----------- Improved Matter Neutralizer Advanced KE Penetrator Mass Driver > --- INVENTORY -------- Quantum Reactor Quantum Reactor Centrium Heavy Treads Advanced Heat Sink Huge Storage Unit Compact Matter Pod Improved Sensor Array Improved Signal Interpreter Advanced Terrain Scanner Terrain Scan Processor Centrium Medium Armor Plating Centrium Medium Armor Plating Centrium Medium Armor Plating Heavy Plasma Cannon Heavy Plasma Cannon Advanced KE Penetrator Advanced KE Penetrator Advanced KE Penetrator Heavy Flak Cannon Heavy Shock Bomb Launcher Heavy Missile Launcher Remote Datajack Heavy Flail [Rating: 128] Favorites ----------- Power Light Angular Momentum Engine Engine Light Angular Momentum Engine Power Core Neutrino Core Reactor Quantum Reactor Propulsion Improved Treads Treads Improved Treads Leg Flexi-carbon Leg Wheel Wheel Hover Unit Improved Antigrav System Flight Unit Electron Diverter Utility Huge Storage Unit Device Advanced Heat Sink Storage Huge Storage Unit Processor Visual Processing Unit Hackware Relay Coupler [Sentry] Protection Improved Light Armor Plating Weapon Improved Light Cannon Energy Gun Advanced Beam Rifle Energy Cannon Improved Matter Neutralizer Ballistic Gun Advanced KE Penetrator Ballistic Cannon Improved Light Cannon Launcher Rocket Launcher Special Weapon Remote Datajack Impact Weapon Heavy Flail Slashing Weapon Ionic Axe Piercing Weapon Heavy Pick Special Melee Weapon Improved Datajack Build | -11 -10 -9 -8 -7 -7 -6 -5 -5 -5 -5 -5 -4 -3 -3 ------- Run | Scr Mat Mat Mat Fac Gar Fac Fac Ext Cet Arc Hub Fac Res Tes Slots Evolved 14 | . . 2 2 2 . 2 2 . . . . 2 2 . Power 1 | . . . . . . . 1 . . . . . . . Propulsion 4 | . . . 1 1 . . . . . . . . 2 . Utility 8 | . . 1 1 1 . 2 1 . . . . 2 . . Weapon 1 | . . 1 . . . . . . . . . . . . Parts Attached 291 | 1 7 14 11 2 19 69 44 38 8 8 29 5 17 19 Power 25 | . . 2 . . 2 6 5 2 . 1 3 . 2 2 Engine 12 | . . 2 . . . 4 4 1 . . . . . 1 Core 7 | . . . . . 2 2 1 1 . . 1 . . . Reactor 6 | . . . . . . . . . . 1 2 . 2 1 Propulsion 55 | . 2 2 3 1 4 14 10 6 2 . 3 . 2 6 Treads 19 | . 2 2 3 1 3 1 . 4 2 . 1 . . . Leg 21 | . . . . . 1 8 5 2 . . . . . 5 Wheel 13 | . . . . . . 5 5 . . . 2 . 1 . Hover 1 | . . . . . . . . . . . . . 1 . Flight 1 | . . . . . . . . . . . . . . 1 Utility 113 | . 3 3 5 1 7 29 14 14 3 4 14 5 7 4 Device 59 | . . 1 2 1 3 19 9 8 2 2 4 2 6 . Storage 7 | . 2 . 1 . . . . . . . . 1 1 2 Processor 18 | . 1 1 1 . . 5 3 1 . 2 . 2 . 2 Hackware 8 | . . . . . . 3 2 . . . 3 . . . Protection 21 | . . 1 1 . 4 2 . 5 1 . 7 . . . Artifact . | . . . . . . . . . . . . . . . Weapon 98 | 1 2 7 3 . 6 20 15 16 3 3 9 . 6 7 Energy Gun 4 | . . 1 . . 1 . . 1 . . . . 1 . Energy Cannon 11 | . . . . . . 3 1 1 . 1 1 . 1 3 Ballistic Gun 14 | 1 . . . . . . 4 . 2 . 4 . 1 2 Ballistic Cannon 32 | . . 3 3 . 2 7 7 5 . 1 2 . 2 . Launcher 15 | . . 1 . . 3 5 1 1 1 . 2 . . 1 Special Weapon 2 | . . . . . . . . 2 . . . . . . Impact Weapon 16 | . 2 2 . . . 4 1 5 . 1 . . 1 . Slashing Weapon 1 | . . . . . . . . . . . . . . 1 Piercing Weapon 2 | . . . . . . . 1 1 . . . . . . Special Melee Weapon 1 | . . . . . . 1 . . . . . . . . Unidentified Prototypes 18 | . . 1 . . . 6 1 . 3 . . . . 7 Corrupted Parts 19 | . . . . . . 8 . . 1 . 6 . . 4 System Corruption 138 | . . . . . . 71 . . 4 . 38 . . 25 Parts Lost 114 | . . 1 . . 12 29 23 2 1 1 17 . 24 4 Power 21 | . . 1 . . 2 6 5 . . . 3 . 3 1 Propulsion 28 | . . . . . 5 8 7 1 . . 2 . 5 . Utility 33 | . . . . . 2 10 3 1 . . 5 . 11 1 Weapon 32 | . . . . . 3 5 8 . 1 1 7 . 5 2 Highest Loss Streak 16 | . . 1 . . 6 9 16 2 1 1 16 . 15 3 To Critical Strikes 2 | . . . . . . . 1 . . . 1 . . . Average Slot Usage (%) 92 | . 98 97 98 100 94 88 93 98 94 88 82 91 74 34 Engine 4 | . 14 10 9 7 . 1 6 5 5 1 . . . 1 Core 3 | . . . . . 6 2 . 4 5 5 2 5 2 . Treads 12 | . 6 22 27 30 22 1 . 12 17 11 8 5 2 . Leg 7 | . 21 . . . 2 16 15 10 . . . . . 9 Wheel 1 | . . . . . . 1 6 . . . 3 10 7 . Device 15 | . . . 4 15 12 15 17 24 29 24 18 21 16 . Storage 6 | . 14 11 9 7 7 6 5 5 5 5 5 5 4 4 Processor 9 | . 12 20 15 15 9 6 9 5 5 13 13 18 17 8 Hackware 2 | . . . . . . 10 11 1 . . . . . . Protection 4 | . . . 5 . 6 3 . 7 5 1 4 5 2 . Energy Gun 1 | . 2 . . . 3 3 . . 5 . . . 1 . Energy Cannon 1 | . . . . . . . 4 3 . 5 4 5 2 . Ballistic Gun 1 | . 2 . . . . . 1 . 4 5 7 10 5 1 Ballistic Cannon 9 | . . 10 27 23 15 7 6 8 3 1 2 . 1 . Impact Weapon 2 | . 24 20 . . . 3 . 2 . 3 . . . . Naked Turns 11 | . . . . . . . . . . . . . 1 10 Heaviest Build 159 | 14 33 42 110 111 111 120 126 159 140 155 154 141 144 67 Greatest Support 160 | 20 46 46 69 91 91 71 75 86 160 160 160 20 80 131 Greatest Overweight (x) 13 | . 1 . 1 1 4 9 10 3 1 . 13 7 12 3 Average Overweight (x) 1 | . . . . 1 1 2 3 1 . . 2 6 3 . Largest Inventory Capacity 25 | 8 15 15 25 25 25 25 25 25 25 25 25 25 25 15 Average Capacity 23 | 8 14 15 24 25 25 25 25 25 25 25 25 25 23 9 Most Carried 25 | 8 15 15 25 24 25 25 25 25 25 25 25 25 25 5 Average Carried 22 | 7 13 14 22 23 23 24 22 24 24 24 18 22 22 4 Final Capacity 25 | 8 15 15 25 25 25 25 25 25 25 25 25 25 5 15 Final Carried 25 | 8 15 15 25 24 25 23 23 25 25 25 23 25 4 3 Class Distribution -------------------- 28% | Mutant 22% | Scavenger-Mutant 12% | Bothacker-Mutant 8% | Scavenger-Assassin 6% | Scavenger-Skirmisher 5% | Gunner 5% | Scavenger-Gunner 4% | Scavenger-Tank 3% | Skirmisher Dominant Class ---------------- Mutant | -10/Materials Mutant | -9/Materials Gunner | -8/Materials Skirmisher | -7/Factory Mutant | -7/Garrison Bothacker-Mutant | -6/Factory Scavenger-Mutant | -5/Factory Scavenger-Mutant | -5/Extension Scavenger-Gunner | -5/Cetus Scavenger-Assassin | -5/Archives Scavenger-Skirmisher | -5/Hub_04(d) Scavenger-Mutant | -4/Factory Scavenger-Mutant | -3/Research Mutant | -3/Testing Resources | -11 -10 -9 -8 -7 -7 -6 -5 -5 -5 -5 -5 -4 -3 -3 ----------- Run | Scr Mat Mat Mat Fac Gar Fac Fac Ext Cet Arc Hub Fac Res Tes Matter Collected 6953 | 225 50 259 449 . 541 1644 912 1236 310 277 461 . 246 343 Remotely 1388 | . . . 294 . 175 919 . . . . . . . . Salvage Created 6591 | 132 55 589 377 126 367 1386 578 996 276 443 574 . 439 253 Parts 285 | 12 . 42 35 6 12 28 28 29 14 17 29 . 22 11 Haulers Intercepted 12 | . . 4 5 . . 2 . . . . . . . 1 Recyclers Shooed 8 | 1 . . . . . 4 1 1 . . . . 1 . Parts Field Recycled . | . . . . . . . . . . . . . . . Retrieved Matter . | . . . . . . . . . . . . . . . Parts Self-Destructed . | . . . . . . . . . . . . . . . Prevented . | . . . . . . . . . . . . . . . Kills | -11 -10 -9 -8 -7 -7 -6 -5 -5 -5 -5 -5 -4 -3 -3 ------- Run | Scr Mat Mat Mat Fac Gar Fac Fac Ext Cet Arc Hub Fac Res Tes Combat Hostiles Destroyed 121 | . . 13 7 1 21 23 11 13 6 4 13 . 9 . Melee 4 | . . 3 . . . 1 . . . . . . . . Guns 16 | . . . . . 1 . 2 . 3 1 2 . 7 . Cannons 58 | . . 3 7 1 5 15 9 9 2 3 4 . . . AOE 37 | . . 5 . . 15 6 . 4 . . 7 . . . Classes Destroyed 18 | 2 1 6 . . 2 5 . . . 1 1 . . . Worker 11 | . . 1 2 . . 4 1 . . . . . 1 2 Builder 10 | . . 1 1 . . 3 2 2 . . 1 . . . Tunneler 8 | 5 1 1 . . . . 1 . . . . . . . Hauler 12 | . . 4 5 . . 2 . . . . . . . 1 Recycler 14 | 1 . 1 . 1 . 5 . 5 . . . . . 1 Operator 9 | . . . . . . . . . . 9 . . . . Watcher 5 | . 2 1 1 . . . . . . . 1 . . . Swarmer 28 | . . 5 3 . 8 . . 4 3 . . . 5 . Saboteur 1 | . . . . . . 1 . . . . . . . . Grunt 39 | . . 3 2 . 9 11 5 5 . . 4 . . . Brawler 1 | . . . . . 1 . . . . . . . . . Duelist 1 | . . . . . 1 . . . . . . . . . Protector 1 | . . . . . . 1 . . . . . . . . Sentry 20 | . . 5 2 1 2 2 2 . . 4 2 . . . Specialist 5 | . . . . . . 1 . . . . 2 . 2 . Hunter 14 | . . . . . . 4 2 4 1 . 3 . . . Programmer 8 | . . . . . . 3 2 . . . 1 . 2 . Heavy 1 | . . . . . . . . . . . 1 . . . Cetus Guard 2 | . . . . . . . . . 2 . . . . . Best Kill Streak 11 | 4 1 7 5 2 10 11 6 5 3 7 8 . 8 4 Combat Bots Only 10 | . . 5 3 1 10 9 6 5 3 2 8 . 7 . Max Kills in Single Turn 5 | 1 1 5 1 2 4 3 1 4 1 1 3 . 1 1 Gunslinging . | . . . . . . . . . . . . . . . Exploded 4 | . . 3 . . 4 3 . 4 . . 3 . . . Melee 1 | . . 1 . . . 1 . . . . . . . . Uniques/NPCs Destroyed . | . . . . . . . . . . . . . . . Combat | -11 -10 -9 -8 -7 -7 -6 -5 -5 -5 -5 -5 -4 -3 -3 -------- Run | Scr Mat Mat Mat Fac Gar Fac Fac Ext Cet Arc Hub Fac Res Tes Damage Taken 20300 | . . 811 222 40 1749 3777 2674 1004 400 300 5033 . 3066 1224 Core 2838 | . . 171 40 . 101 410 223 152 20 54 351 . 1032 284 Absorbed by Shields 988 | . . . . . 73 . . 114 169 . . . 56 576 Reduced by Siege Mode 411 | . . . . . . . . . . 12 333 . 66 . Redirected to Shielding 23 | . . . . . . 23 . . . . . . . . Regen/Repaired (Parts) 301 | . . . . . . . 301 . . . . . . . Core Remaining (%) 75 | 100 100 57 92 . 85 51 . . . . 20 100 . . Volleys Fired 441 | 16 . 10 30 1 41 67 50 55 22 51 44 10 33 11 Largest 3 | 2 . 3 3 3 3 3 3 3 3 3 3 3 3 2 Hottest 229 | 90 . 117 117 144 144 154 214 223 186 229 201 160 201 119 Shots Fired 899 | 32 . 26 90 3 82 132 108 99 57 77 94 16 66 17 Gun 226 | 32 . . . . 5 4 37 . 39 18 44 6 31 10 Cannon 620 | . . 24 90 3 59 111 70 92 16 59 44 10 35 7 Launcher 47 | . . 2 . . 18 17 1 1 2 . 6 . . . Special 6 | . . . . . . . . 6 . . . . . . Kinetic 620 | 15 . 24 90 3 59 111 82 64 34 27 60 6 35 10 Thermal 219 | 16 . . . . 5 4 25 28 21 50 28 10 31 1 Explosive 38 | . . 2 . . 18 13 . 1 . . 4 . . . Electromagnetic 16 | 1 . . . . . 4 1 . 2 . 2 . . 6 Robot Hit Streak 16 | 6 . 5 9 4 16 13 9 8 7 7 12 1 11 10 Robot Miss Streak 14 | 3 . 3 4 . 2 12 4 14 4 4 8 4 1 2 Penetration Max 1 | . . . . . . . . . 1 1 1 . . 1 Secondary Targets 2 | . . . . . . . . . . . . . 2 . Max Gunslinging Chain 1 | . . . . . . . . . . . . . 1 . Shots Hit Robots 595 | 20 3 37 42 2 54 117 61 58 34 53 53 2 44 15 Core Hits 380 | 9 . 23 21 3 42 110 27 38 18 22 41 . 17 9 Critical Kills 9 | . . 2 . . . 1 . . . 2 1 . 3 . Critical Parts Destroyed 14 | . 2 3 . . . 1 1 . 1 . 1 . 5 . Critical Strikes 48 | 1 2 7 3 . 2 6 4 7 2 3 2 . 8 1 Burn 2 | 1 . . . . . . . . 1 . . . . . Meltdown 4 | . . . . . . . . . . 2 . . 2 . Destroy 10 | . . . . . . . 1 . 1 . 2 . 6 . Blast 21 | . . 2 3 . 2 4 3 6 . 1 . . . . Corrupt 1 | . . . . . . . . . . . . . . 1 Smash 9 | . 2 5 . . . 2 . . . . . . . . Impale 1 | . . . . . . . . 1 . . . . . . Melee Attacks 132 | . 6 40 . . . 36 10 30 . 2 . . 3 5 Impact 109 | . 6 40 . . . 29 2 27 . 2 . . 3 . Slashing 5 | . . . . . . . . . . . . . . 5 Piercing 11 | . . . . . . . 8 3 . . . . . . Sneak Attacks 33 | . 1 3 . . . 12 4 5 . 2 . . 1 5 Combat Hostiles . | . . . . . . . . . . . . . . . Follow-up Attacks 6 | . . 6 . . . . . . . . . . . . Damage Inflicted 24090 | 262 167 1563 990 85 2670 5652 2019 1887 1312 2043 3022 62 1358 998 Guns 3392 | 214 . . . . 80 80 422 . 631 383 668 29 646 239 Cannons 10587 | . . 307 990 85 970 2084 1254 1205 484 1418 843 33 624 290 Explosions 6439 | 48 . 390 . . 1620 2321 79 273 197 . 1511 . . . Melee 3653 | . 167 866 . . . 1167 264 390 . 242 . . 88 469 Ramming 19 | . . . . . . . . 19 . . . . . . Kinetic 9674 | 86 . 307 990 85 970 2084 1201 809 770 606 969 29 529 239 Thermal 4703 | 161 . . . . 80 485 475 396 345 1195 792 33 741 . Explosive 4925 | . . 390 . . 1620 1667 . 273 . . 975 . . . Electromagnetic 1116 | 15 . . . . . 249 79 . 197 . 286 . . 290 Impact 2728 | . 167 866 . . . 1167 . 198 . 242 . . 88 . Slashing 469 | . . . . . . . . . . . . . . 469 Piercing 456 | . . . . . . . 264 192 . . . . . . Highest Corruption 74 | . . . . . . 74 8 8 12 12 55 . 3 35 Average Corruption 11 | . . . . . . 26 7 8 8 12 31 . 2 12 Corruption Purged . | . . . . . . . . . . . . . . . Corruption Blocked . | . . . . . . . . . . . . . . . Effects 172 | . . . . . . 13 2 77 19 21 30 . 2 8 Message Errors 25 | . . . . . . 2 . 11 5 1 4 . 1 1 Matter Fused 44 | . . . . . . . 1 21 6 9 6 . . 1 Heat Flow Errors 20 | . . . . . . 1 1 11 1 2 3 . . 1 Energy Discharges 21 | . . . . . . . . 11 3 2 4 . . 1 Parts Rejected 3 | . . . . . . . . 1 . . 1 . . 1 Data Loss (minor) 25 | . . . . . . 2 . 13 2 4 3 . 1 . Data Loss (major) 8 | . . . . . . 1 . 3 . . 3 . . 1 Misfires 4 | . . . . . . 1 . 2 . . 1 . . . Alerts 4 | . . . . . . . . 2 1 . 1 . . . Misdirections 4 | . . . . . . 2 . . . . . . . 2 Weapon Failures 14 | . . . . . . 4 . 2 1 3 4 . . . Overload Shots . | . . . . . . . . . . . . . . . Overflow Damage 1903 | . 127 206 9 . 5 751 79 215 17 348 32 . 29 85 Projectiles 300 | . . . 9 . 2 56 37 . 17 137 . . 29 13 Explosions 155 | . . . . . 3 105 . 15 . . 32 . . . Melee 1448 | . 127 206 . . . 590 42 200 . 211 . . . 72 Knockbacks 61 | . . 3 4 . 5 25 7 9 1 1 3 . 3 . Impact 9 | . . 3 . . . 3 . 2 . 1 . . . . Kinetic 49 | . . . 4 . 5 19 7 7 1 . 3 . 3 . Secondary 3 | . . . . . . 3 . . . . . . . . Self-Inflicted Damage 656 | . . . . . 225 99 . . . . 332 . . . Shots 17 | . . . . . 7 3 . . . . 7 . . . Rammed . | . . . . . . . . . . . . . . . Targets Rammed 1 | . . . . . . . . 1 . . . . . . Kicked 1 | . . . . . . . . 1 . . . . . . Crushed . | . . . . . . . . . . . . . . . Highest Temperature 583 | 160 . 130 249 60 353 574 206 367 145 207 583 144 350 399 Average Temperature 103 | 66 . 50 78 32 112 128 64 101 58 55 132 37 145 208 Received Heat Transfer 3788 | . . 258 45 12 453 885 664 58 . 54 600 . 622 137 Effects 21 | . . . . . 1 9 . 1 . . 8 . 2 . Shutdowns 4 | . . . . . . 1 . . . . 2 . 1 . Energy Bleed 2 | . . . . . . . . . . . 1 . 1 . Interference 4 | . . . . . . . . 1 . . 3 . . . Matter Decay 3 | . . . . . 1 2 . . . . . . . . Short Circuit 3 | . . . . . . 1 . . . . 2 . . . Damage (minor) 1 | . . . . . . 1 . . . . . . . . Damage (major) 4 | . . . . . . 4 . . . . . . . . Siege Activations 7 | . . . . . . . . . . 4 1 . 2 . Total Turns 120 | . . . . . . . . . . 38 46 . 36 . Longest Duration 46 | . . . . . . . . . . 15 46 . 26 . Robots Corrupted 2 | . . . . . . 1 . . 1 . . . . . Combat Hostiles 2 | . . . . . . 1 . . 1 . . . . . Parts Fried 32 | . 5 4 . . . 7 1 8 1 5 1 . . . Impact Corruptions 40 | . 5 8 . . . 18 . 4 . 5 . . . . Robots Melted 4 | . . . . . . . . . . 2 . . 2 . Combat Hostiles 2 | . . . . . . . . . . . . . 2 . Parts Melted 7 | 1 . . . . . . . . 1 3 . . 2 . Heat Transferred 5375 | 457 . . . . 148 398 444 370 629 1147 872 50 860 . Parts Sabotaged 2 | . . . . . . 2 . . . . . . . . Parts Stolen . | . . . . . . . . . . . . . . . Parts Stripped . | . . . . . . . . . . . . . . . Power Chain Reactions 5 | 1 . . . . . 3 . . . . 1 . . . Missiles Intercepted . | . . . . . . . . . . . . . . . Alert | -11 -10 -9 -8 -7 -7 -6 -5 -5 -5 -5 -5 -4 -3 -3 ------- Run | Scr Mat Mat Mat Fac Gar Fac Fac Ext Cet Arc Hub Fac Res Tes Peak Influence 894 | 30 86 439 311 124 894 566 370 261 647 435 536 226 278 121 Initial 469 | . 19 35 176 74 89 469 247 57 142 194 84 171 118 11 Average 289 | 17 52 266 212 92 638 337 217 80 447 366 297 211 139 74 Maximum Alert Level 3 | . . 2 1 . 3 2 1 1 2 2 2 1 1 . Low Security (%) 42 | 100 100 28 58 100 7 6 60 82 10 1 34 4 84 100 Level 1 32 | . . 50 41 . 23 59 39 17 20 46 40 95 15 . Level 2 14 | . . 20 . . 9 34 . . 69 51 24 . . . Level 3 10 | . . . . . 59 . . . . . . . . . Level 4 . | . . . . . . . . . . . . . . . Level 5 . | . . . . . . . . . . . . . . . High Security . | . . . . . . . . . . . . . . . Max Security . | . . . . . . . . . . . . . . . Squads Dispatched 29 | . . . . . . 10 1 5 . . 8 1 2 2 Investigation 9 | . . . . . . 3 . 4 . . 1 . . 1 Extermination 4 | . . . . . . 2 1 . . . . . 1 . Reinforcement 12 | . . . . . . 5 . 1 . . 4 1 1 . Assault 1 | . . . . . . . . . . . . . . 1 Garrison 3 | . . . . . . . . . . . 3 . . . Intercept . | . . . . . . . . . . . . . . . Searches Triggered . | . . . . . . . . . . . . . . . Construction Impeded 4 | . . . . . . 2 . 1 . . 1 . . . Haulers Reinforced 1 | . . . . . . 1 . . . . . . . . Active Scanning Responses . | . . . . . . . . . . . . . . . Cargo Convoy Interrupts 2 | . . . . . . 1 . . . . . . 1 . Stealth | -11 -10 -9 -8 -7 -7 -6 -5 -5 -5 -5 -5 -4 -3 -3 --------- Run | Scr Mat Mat Mat Fac Gar Fac Fac Ext Cet Arc Hub Fac Res Tes Distress Signals 10 | . . 2 1 . . . . 3 2 . 2 . . . Communications Jammed . | . . . . . . . . . . . . . . . Distress Signals . | . . . . . . . . . . . . . . . Times Spotted 249 | . 3 19 10 1 21 39 12 32 19 26 22 2 31 12 Peak Tracking Total 13 | . 2 5 3 1 8 12 6 6 5 1 8 1 13 9 Tactical Retreats 10 | . . 2 . . . 1 . 2 1 . 2 . 1 1 Traps | -11 -10 -9 -8 -7 -7 -6 -5 -5 -5 -5 -5 -4 -3 -3 ------- Run | Scr Mat Mat Mat Fac Gar Fac Fac Ext Cet Arc Hub Fac Res Tes Traps Triggered 18 | . . . . . 6 1 1 7 . . . . 2 1 Indirectly . | . . . . . . . . . . . . . . . Trap Hack Attempts 9 | . . . . . . 9 . . . . . . . . Triggered 1 | . . . . . . 1 . . . . . . . . Disarmed 1 | . . . . . . 1 . . . . . . . . Reprogrammed . | . . . . . . . . . . . . . . . Reused . | . . . . . . . . . . . . . . . Traps Extracted . | . . . . . . . . . . . . . . . Installed . | . . . . . . . . . . . . . . . Triggered . | . . . . . . . . . . . . . . . Machines | -11 -10 -9 -8 -7 -7 -6 -5 -5 -5 -5 -5 -4 -3 -3 ---------- Run | Scr Mat Mat Mat Fac Gar Fac Fac Ext Cet Arc Hub Fac Res Tes Machines Disabled 31 | . . 2 1 . 3 2 . 7 3 3 7 2 . 1 Max in Single Turn 1 | . . 1 1 . 1 1 . 1 1 1 1 1 . 1 Garrison Access 1 | . . . . . . . . . . . . . . 1 Garrison Relay 2 | . . . . . 2 . . . . . . . . . Machines Sabotaged . | . . . . . . . . . . . . . . . Garrisons Compromised . | . . . . . . . . . . . . . . . Overloaded Fab Kills . | . . . . . . . . . . . . . . . Hacking | -11 -10 -9 -8 -7 -7 -6 -5 -5 -5 -5 -5 -4 -3 -3 --------- Run | Scr Mat Mat Mat Fac Gar Fac Fac Ext Cet Arc Hub Fac Res Tes Machines Accessed 43 | . 2 1 4 1 . 8 5 12 3 . 1 2 . 4 Terminals 33 | . 2 1 3 . . 4 3 11 3 . 1 2 . 3 Fabricators 3 | . . . . . . 2 1 . . . . . . . Repair Stations 1 | . . . . . . . 1 . . . . . . . Recycling Units 4 | . . . 1 . . 2 . 1 . . . . . . Scanalyzers . | . . . . . . . . . . . . . . . Garrison Access 2 | . . . . 1 . . . . . . . . . 1 Total Hacks 96 | . 10 3 9 1 . 15 14 25 5 . 2 4 . 8 Successful 32 | . 5 1 3 1 . 2 7 6 1 . 1 2 . 3 Failed 64 | . 5 2 6 . . 13 7 19 4 . 1 2 . 5 Catastrophic 24 | . . 1 2 . . 4 2 11 1 . . 1 . 2 Database Lockouts . | . . . . . . . . . . . . . . . Manual 30 | . 11 . 3 . . 2 3 4 1 . 2 1 . 3 Terminals 80 | . 10 3 7 . . 10 9 23 5 . 2 4 . 7 Fabricators 3 | . . . . . . 2 1 . . . . . . . Repair Stations 4 | . . . . . . . 4 . . . . . . . Recycling Units 7 | . . . 2 . . 3 . 2 . . . . . . Scanalyzers . | . . . . . . . . . . . . . . . Garrison Access 2 | . . . . 1 . . . . . . . . . 1 Terminal Hacks 24 | . 5 1 2 . . 1 4 6 1 . . 2 . 2 Record 1 | . . . . . . . . . 1 . . . . . Robot Analysis 3 | . 2 . 1 . . . . . . . . . . . Prototype ID Bank 6 | . 3 1 1 . . 1 . . . . . . . . Open Door 4 | . . . . . . . . 4 . . . . . . Level Access Points 1 | . . . . . . . . . . . . . . 1 Branch Access Points 2 | . . . . . . . 1 . . . . 1 . . Terminal Index 1 | . . . . . . . 1 . . . . . . . Fabricator Index 1 | . . . . . . . 1 . . . . . . . Unreport Threat 2 | . . . . . . . . 2 . . . . . . Registered Components 1 | . . . . . . . 1 . . . . . . . Zone Layout 1 | . . . . . . . . . . . . 1 . . Protovariant Controls 1 | . . . . . . . . . . . . . . 1 Fabricator Hacks . | . . . . . . . . . . . . . . . Repair Station Hacks 2 | . . . . . . . 2 . . . . . . . Scan Component 1 | . . . . . . . 1 . . . . . . . Repair 1 | . . . . . . . 1 . . . . . . . Recycling Unit Hacks 2 | . . . 1 . . 1 . . . . . . . . Retrieve Components 2 | . . . 1 . . 1 . . . . . . . . Scanalyzer . | . . . . . . . . . . . . . . . Garrison Access Hacks 2 | . . . . 1 . . . . . . . . . 1 Unlock Access 1 | . . . . 1 . . . . . . . . . . Seal Access 1 | . . . . . . . . . . . . . . 1 Unauthorized Hacks 2 | . . . . . . . 1 . . . 1 . . . Terminals 1 | . . . . . . . . . . . 1 . . . Sabotage 1 | . . . . . . . . . . . 1 . . . Fabricators 1 | . . . . . . . 1 . . . . . . . Fabnet 1 | . . . . . . . 1 . . . . . . . Repair Stations . | . . . . . . . . . . . . . . . Recycling Units . | . . . . . . . . . . . . . . . Scanalyzers . | . . . . . . . . . . . . . . . Garrison Access . | . . . . . . . . . . . . . . . Data Cores Recovered . | . . . . . . . . . . . . . . . Used . | . . . . . . . . . . . . . . . Hacking Detections 33 | . 2 1 3 . . 8 3 9 2 . . 2 . 3 Full Trace Events 7 | . . . . . . 2 . 4 . . . . . 1 Feedback Events . | . . . . . . . . . . . . . . . Feedback Blocked . | . . . . . . . . . . . . . . . Robot Schematics Acquired . | . . . . . . . . . . . . . . . Robots Built . | . . . . . . . . . . . . . . . Authchips . | . . . . . . . . . . . . . . . Time . | . . . . . . . . . . . . . . . Total Robot Build Rating . | . . . . . . . . . . . . . . . Part Schematics Acquired . | . . . . . . . . . . . . . . . Parts Built . | . . . . . . . . . . . . . . . Authchips . | . . . . . . . . . . . . . . . Time . | . . . . . . . . . . . . . . . Total Part Build Rating . | . . . . . . . . . . . . . . . Parts Repaired 1 | . . . . . . . 1 . . . . . . . Time 89 | . . . . . . . 89 . . . . . . . Parts Recycled . | . . . . . . . . . . . . . . . Recycled Matter . | . . . . . . . . . . . . . . . Retrieved Matter . | . . . . . . . . . . . . . . . Retrieved Components 10 | . . . 4 . . 6 . . . . . . . . Parts Scanalyzed . | . . . . . . . . . . . . . . . Part Schematics Acquired . | . . . . . . . . . . . . . . . Parts Damaged . | . . . . . . . . . . . . . . . Bothacking | -11 -10 -9 -8 -7 -7 -6 -5 -5 -5 -5 -5 -4 -3 -3 ------------ Run | Scr Mat Mat Mat Fac Gar Fac Fac Ext Cet Arc Hub Fac Res Tes Used RIF Installer 1 | . . . . . 1 . . . . . . . . . Robots Hacked 7 | . . . . . . 5 . 2 . . . . . . Non-combat 3 | . . . . . . 3 . . . . . . . . Combat 4 | . . . . . . 2 . 2 . . . . . . Robot Hacks Applied 9 | . . . . . . 7 . 2 . . . . . . map_walls 2 | . . . . . . 2 . . . . . . . . find_fabricator 2 | . . . . . . 2 . . . . . . . . drop_inventory 1 | . . . . . . 1 . . . . . . . . streamctrl_high 1 | . . . . . . . . 1 . . . . . . formatsys_high 3 | . . . . . . 2 . 1 . . . . . . Relay Couplers Released 7 | . . . . . 7 . . . . . . . . . Machine Destruction 7 | . . . . . 7 . . . . . . . . . Attached 5 | . . . . . . 3 2 . . . . . . . Fabnet Peak Effective % 3 | . . . . . . . . . . . . 3 1 1 Robots Rewired 7 | . . . . . . . . 7 . . . . . . Allies Hacked . | . . . . . . . . . . . . . . . Hacks Repelled . | . . . . . . . . . . . . . . . Allies | -11 -10 -9 -8 -7 -7 -6 -5 -5 -5 -5 -5 -4 -3 -3 -------- Run | Scr Mat Mat Mat Fac Gar Fac Fac Ext Cet Arc Hub Fac Res Tes Total Allies 21 | . . . . . . 2 . 19 . . . . . . Largest Group 7 | . . . . . . 2 . 7 4 1 . . . . Highest-Rated Group 361 | . . . . . . 73 . 361 260 159 . . . . Highest-Rated Ally 159 | . . . . . . 41 . 159 159 159 . . . . Total Orders 3 | . . . . . . . . 3 . . . . . . STAY 1 | . . . . . . . . 1 . . . . . . FOLLOW 2 | . . . . . . . . 2 . . . . . . Ally Attacks 190 | . . . . . . 14 . 103 73 . . . . . Total Damage 4906 | . . . . . . 557 . 2257 2092 . . . . . Kills 41 | . . . . . . 6 . 20 15 . . . . . Allies Corrupted 1 | . . . . . . . . 1 . . . . . . Allies Melted . | . . . . . . . . . . . . . . . Intel | -11 -10 -9 -8 -7 -7 -6 -5 -5 -5 -5 -5 -4 -3 -3 ------- Run | Scr Mat Mat Mat Fac Gar Fac Fac Ext Cet Arc Hub Fac Res Tes Robot Analysis Total 3 | . 2 . 1 . . . . . . . . . . . Derelict Logs Recovered . | . . . . . . . . . . . . . . . Drone Launches . | . . . . . . . . . . . . . . . Drone Recoveries . | . . . . . . . . . . . . . . . Exploration | -11 -10 -9 -8 -7 -7 -6 -5 -5 -5 -5 -5 -4 -3 -3 ------------- Run | Scr Mat Mat Mat Fac Gar Fac Fac Ext Cet Arc Hub Fac Res Tes Turns Passed 12277 | 126 277 645 977 115 2135 1986 1075 2549 515 453 527 126 536 235 Spaces Moved 4734 | 42 132 315 352 44 728 620 434 957 193 131 210 56 276 244 Core 191 | . . . . . . . . . . . . . 87 104 Treads 2574 | . 36 315 352 44 728 71 . 529 193 131 130 . 45 . Legs 1175 | 42 96 . . . . 449 115 428 . . . . . 45 Wheels 699 | . . . . . . 100 319 . . . 80 56 144 . Hover . | . . . . . . . . . . . . . . . Flight 95 | . . . . . . . . . . . . . . 95 Fastest Speed 35 | 120 120 145 160 236 232 129 136 190 160 160 160 170 50 35 Average Speed 204 | 120 179 149 238 236 268 244 174 222 223 160 168 170 146 56 Slowest Speed 750 | 120 240 160 240 236 465 750 230 400 240 160 275 185 260 215 Overloaded Moves . | . . . . . . . . . . . . . . . Propulsion Burnouts . | . . . . . . . . . . . . . . . Robots Hopped . | . . . . . . . . . . . . . . . Cave-ins Triggered 1 | . . . . . . . . 1 . . . . . . Exploration Rate (%) 30 | 4 24 37 31 2 58 17 10 63 69 80 24 3 7 31 Regions Visited 14 Branch Regions 5 Pre-discovered Areas . | . . . . . . . . . . . . . . . Known Exits Taken 3 | . . . . 1 . . 1 . . 1 . . . . Unknown Exits Taken 10 | 1 1 1 1 . . 1 . 1 1 . 1 1 1 . Scrap Searched . | . . . . . . . . . . . . . . . Spaces Dug 57 | . 3 1 . . . 7 19 12 . . . 7 8 . Terrain Destroyed 363 | 5 3 23 6 . 73 56 33 58 6 16 62 9 10 3 Melee 23 | . 3 1 . . . 7 6 5 . . . . 1 . Projectile 172 | . . 3 6 . 3 13 27 43 6 16 34 9 9 3 AOE 168 | 5 . 19 . . 70 36 . 10 . . 28 . . . Terrain Rammed . | . . . . . . . . . . . . . . . Walls Destroyed . | . . . . . . . . . . . . . . . Machines Disabled . | . . . . . . . . . . . . . . . Actions | -11 -10 -9 -8 -7 -7 -6 -5 -5 -5 -5 -5 -4 -3 -3 --------- Run | Scr Mat Mat Mat Fac Gar Fac Fac Ext Cet Arc Hub Fac Res Tes Total 6448 | 88 166 416 426 52 837 935 668 1267 251 300 303 74 353 312 Wait 471 | 28 . 8 10 4 29 76 83 107 2 103 . . 18 3 Move 4719 | 41 131 314 351 44 726 619 433 955 192 130 209 55 275 244 Hop . | . . . . . . . . . . . . . . . Pick Up 172 | 2 10 17 14 1 11 29 33 12 9 3 19 3 4 5 Fast Attach 95 | . 6 7 3 . 2 21 10 15 4 1 5 1 7 13 Attach 94 | . . 2 1 2 9 20 27 3 1 1 15 2 6 5 Detach 17 | . 3 . 2 . . 3 3 3 1 . . . . 2 Swap 102 | 1 1 5 7 . 8 28 7 20 3 6 9 2 4 1 Drop 131 | . 9 24 8 . 1 27 12 21 17 3 2 1 3 3 Fire 441 | 16 . 10 30 1 41 67 50 55 22 51 44 10 33 11 Melee 121 | . 6 29 . . . 36 10 30 . 2 . . 3 5 Ram . | . . . . . . . . . . . . . . . Kick 1 | . . . . . . . . 1 . . . . . . Crush . | . . . . . . . . . . . . . . . Escape Stasis 55 | . . . . . 10 . . 25 . . . . . 20 Rewire 20 | . . . . . . . . 20 . . . . . . Trap 9 | . . . . . . 9 . . . . . . . . Miscellaneous . | . . . . . . . . . . . . . . . Route ------- -11/Scrapyard -10/Materials -9/Materials -8/Materials -7/Factory (discovered 2 exits: [*Low] / Gar) -7/Garrison (discovered 2 exits: *Fac x2) -6/Factory -5/Factory (discovered 4 exits: *Upp x2 / *Ext x2) -5/Extension (discovered 2 exits: *Fac / *Cet) -5/Cetus (discovered 2 exits: *Fac / [*Arc]) -5/Archives (discovered 2 exits: *Fac / *Hub) -5/Hub_04(d) (discovered 2 exits: *Fac x2) -4/Factory (discovered 4 exits: [*Res] / Upp x2 / Arm) -3/Research -3/Testing (discovered 1 exit: Res) History --------- Turn | Location | Event 1 | -11/Scrapyard | Discovered new exit (range 3) 127 | -11/Scrapyard | Entered Materials 292 | -10/Materials | Discovered new exit (range 16) 300 | -10/Materials | Build established: Mutant 404 | -10/Materials | Entered another Materials area 404 | -9/Materials | Evolved 2 slots: Utility x1, Weapon x1 1026 | -9/Materials | Discovered new exit (range 13) 1049 | -9/Materials | Entered another Materials area 1049 | -8/Materials | Evolved 2 slots: Propulsion x1, Utility x1 1305 | -8/Materials | Build established: Tank 1654 | -8/Materials | Build established: Gunner 1956 | -8/Materials | Discovered new exit (range 5) 2026 | -8/Materials | Entered Factory 2026 | -7/Factory | Evolved 2 slots: Propulsion x1, Utility x1 2119 | -7/Factory | Discovered new exit (range 17) 2141 | -7/Factory | Identified exit to Garrison 2141 | -7/Factory | Entered Garrison 2266 | -7/Garrison | Triggered checkpoint 2371 | -7/Garrison | Garrison Relay disabled 2574 | -7/Garrison | Build established: Mutant 2789 | -7/Garrison | Triggered checkpoint 2791 | -7/Garrison | Triggered checkpoint 2839 | -7/Garrison | Destroyed 10 combat bots 2847 | -7/Garrison | Lost 6 parts (1p1n2u2w) 3090 | -7/Garrison | Discovered new exit (range 11) 3152 | -7/Garrison | Triggered checkpoint 3210 | -7/Garrison | Lost 5 parts (4n1w) 3231 | -7/Garrison | Garrison Relay disabled 3502 | -7/Garrison | Triggered checkpoint 3642 | -7/Garrison | Discovered new exit (range 12) 3706 | -7/Garrison | Installed Relay Interface Framework 4276 | -7/Garrison | Entered Factory 4276 | -6/Factory | Evolved 2 slots: Utility x2 4530 | -6/Factory | Lost 4 parts (1p2n1u) 4754 | -6/Factory | Build established: Bothacker-Mutant 6003 | -6/Factory | Lost 4 parts (1p2n1u) 6078 | -6/Factory | Cargo convoy interrupted 6137 | -6/Factory | Lost 9 parts (1p3n3u2w) 6142 | -6/Factory | System corruption reached 10% 6153 | -6/Factory | Destroyed 9 combat bots 6164 | -6/Factory | System corruption reached 30% 6245 | -6/Factory | Discovered new exit (range 4) 6262 | -6/Factory | Entered another Factory area 6262 | -5/Factory | Evolved 2 slots: Power x1, Utility x1 6291 | -5/Factory | Lost 6 parts (1n3u2w) 6355 | -5/Factory | Identified exit to Upper Caves 6355 | -5/Factory | Identified exit to Extension 6618 | -5/Factory | Repaired Enh. Armored Leg 6724 | -5/Factory | Build established: Scavenger-Assassin 6839 | -5/Factory | Lost 16 parts (3p5n3u5w) 7098 | -5/Factory | Lost 4 parts (2p2n) 7337 | -5/Factory | Entered Extension 7692 | -5/Extension | Rescued a captive Derelict 7692 | -5/Extension | Rescued a captive Derelict 7772 | -5/Extension | Rescued a captive Derelict 7799 | -5/Extension | Rescued a captive Derelict 7800 | -5/Extension | Rescued a captive Derelict 8180 | -5/Extension | Rescued a captive Derelict 8378 | -5/Extension | Rescued a captive Derelict 8461 | -5/Extension | Rescued a captive Derelict 8667 | -5/Extension | Rescued a captive Derelict 8848 | -5/Extension | Build established: Scavenger-Tank 9320 | -5/Extension | Rescued A7 9368 | -5/Extension | Build established: Scavenger-Mutant 9499 | -5/Extension | Crushed by falling debris 9816 | -5/Extension | Discovered new exit (range 10) 9818 | -5/Extension | Discovered new exit (range 6) 9825 | -5/Extension | Disrupted transfer network 9886 | -5/Extension | Entered Cetus 9886 | -5/Cetus | Accompanied by 4 allies (A7) 9891 | -5/Cetus | Acquired a Cetus Manufacturing Module code from A7 9917 | -5/Cetus | Spotted Cetus Guard 9917 | -5/Cetus | Spotted Cetus Guard 9929 | -5/Cetus | Spotted Cetus Guard 9929 | -5/Cetus | Allies destroyed Cetus Guard 9935 | -5/Cetus | Allies destroyed Cetus Guard 9939 | -5/Cetus | Spotted Cetus Guard 10026 | -5/Cetus | Cetus Manufacturing Module disabled 10130 | -5/Cetus | Failed to start Cetus Manufacturing Module 10134 | -5/Cetus | Build established: Scavenger-Gunner 10168 | -5/Cetus | Discovered new exit (range 15) 10211 | -5/Cetus | Spotted Cetus Guard 10211 | -5/Cetus | Spotted Cetus Guard 10215 | -5/Cetus | Spotted Cetus Guard 10215 | -5/Cetus | Spotted Cetus Guard 10221 | -5/Cetus | Allies destroyed Cetus Guard 10224 | -5/Cetus | Destroyed Cetus Guard 10229 | -5/Cetus | Allies destroyed Cetus Guard 10230 | -5/Cetus | Destroyed Cetus Guard 10247 | -5/Cetus | Discovered new exit (range 16) 10270 | -5/Cetus | Met Revision 17 10330 | -5/Cetus | System corruption reached 10% 10401 | -5/Cetus | Entered Archives 10401 | -5/Archives | Accompanied by 1 ally (A7) 10508 | -5/Archives | Discovered new exit (range 14) 10531 | -5/Archives | Discovered new exit (range 16) 10831 | -5/Archives | Build established: Scavenger-Assassin 10852 | -5/Archives | Identified exit to Hub_04(d) 10854 | -5/Archives | Entered Hub_04(d) 10898 | -5/Hub_04(d) | Discovered new exit (range 9) 10965 | -5/Hub_04(d) | Discovered new exit (range 15) 11035 | -5/Hub_04(d) | Garrison activated, responded to threat 11089 | -5/Hub_04(d) | Core integrity fell below 50% 11127 | -5/Hub_04(d) | System corruption reached 30% 11141 | -5/Hub_04(d) | Destroyed 8 combat bots 11194 | -5/Hub_04(d) | Lost 16 parts (3p2n5u6w) 11381 | -5/Hub_04(d) | Entered Factory 11381 | -4/Factory | Evolved 2 slots: Utility x2 11489 | -4/Factory | Identified exit to Upper Caves 11489 | -4/Factory | Identified exit to Armory 11489 | -4/Factory | Discovered new exit (range 7) 11507 | -4/Factory | Entered Research 11507 | -3/Research | Evolved 2 slots: Propulsion x2 11875 | -3/Research | Destroyed 7 combat bots 11883 | -3/Research | Lost 7 parts (1p2n3u1w) 11982 | -3/Research | Cargo convoy interrupted 11990 | -3/Research | Spotted Striker 11995 | -3/Research | Released all parts (6) 11998 | -3/Research | Core integrity fell below 50% 11998 | -3/Research | Spotted Executioner 12038 | -3/Research | Lost 15 parts (2p3n7u3w) 12039 | -3/Research | Discovered new exit (range 3) 12043 | -3/Research | Entered Testing 12064 | -3/Testing | Found Prototype Launcher 12095 | -3/Testing | Identified exit to Research 12134 | -3/Testing | Spotted PH-19PN8OEAY4 12139 | -3/Testing | Protovariant out of control (PH-19PN8OEAY4) 12139 | -3/Testing | Unleashed a protovariant (PH-19PN8OEAY4) 12154 | -3/Testing | Core integrity fell below 20% 12199 | -3/Testing | System corruption reached 10% 12236 | -3/Testing | Identified Tactical Quantum Warhead 12245 | -3/Testing | Spotted Investigator 12247 | -3/Testing | Scanned by Researcher 12248 | -3/Testing | System corruption reached 30% 12278 | -3/Testing | Destroyed by G-73 Enforcer with Heavy Laser Last Messages --------------- 12270_ P-80 Master resets Investigator, system corruption cleaned. 12270_ P-80 Master stasis bubble strength at 186. 12271_ P-80 Master stasis bubble strength at 179. 12271_ Slug penetrates I-47 Archangel. 12272_ P-80 Master stasis bubble strength at 172. 12272_ Investigator stasis bubble strength at 190. 12273_ P-80 Master stasis bubble strength at 165. 12273_ Held in stasis. 12273_ Stasis bubble bursts. 12273_ Hvy. Proton Cannon destroyed. 12274_ System corrupted: Matter fused (-5). 12274_ P-80 Master stasis bubble strength at 158. 12275_ P-80 Master stasis bubble strength at 151. 12276_ P-80 Master stasis bubble strength at 144. 12276_ Held in stasis. 12276_ Investigator is analyzing... 12276_ Helical Railgun destroyed. 12277_ P-80 Master stasis bubble strength at 137. 12278_ P-80 Master stasis bubble strength at 130. Map ----- +----------------------------------------------------+ | ????????????# #??????????????????????????????? | | ????????????# #??????????????????????????????? | | ???????????? #??????????????????????????????? | | ???????????? #??????????????????????????????? | | ???????????? #??????????????????????????????? | | ????????????# #???????????????????????????? ## | | ????????????# ########################## | | ????????????# | | ????????????# | | ????????????# #? | | ????????????# #? | | ????????????# #???###########+######+#####???? | | ????######### ##???????# # #???? | | ????#""""" # ######### # #???? | | ????#""$"!=" "" ^## # #???? | | ????#"" # T" ## # #???? | | ????#" # ##### ## # #???? | | ????#"" ##/####### ## # #???? | | ????#"""" # ## ## # #???? | | ????######## ## ## %! " #???? | | ????????# "" ## ###"""""""""""""##?????? | | ????????#""" ## " " #?????? | | ????????#" ## i % " !" #?????? | | ????????#""" ##gc### #""%% %! #?????? | | ????????# "" ## ## "[= *" #?????? | | ????????#### ## @#### !%[] " #?????? | | ???????????# ##pg#??# " = " #?????? | | ???????????# ##gp#####""" #""" #?????? | | ???????????#= ## = " ##?????? | | ???????????########## = ! " #??????? | | ???????????????###########""""""#"# " #??????? | | ???????????????# # # " #??????? | | ???????????????# [ [ ########### "##??????? | | ???????????????# # ] # #??????? | | ???????????????# """"" # """ ""# "#??????? | | ???????????????# """"" # """ ""# ###??????? | | ???????????????# """"" # """ G# #????????? | | ???????????????# """"" # """ ""# #????????? | | ???????????????# # """ ! ""# #????????? | | ???????????????#! [# """ # #????????? | | ???????????????####+##### # #????????? | | ????????????????# ##########+### #????????? | | ????????????????# #????????? | | ????????????????# #????????? | | ????????????????# """ !!! ########????????? | | ????????????????# """ !! #???????????????? | | ????????????????# """ !! #???????????????? | | ????????????????# #???????????????? | | ????????????????# """ """ #???????????????? | | ????????????????# """ """ #???????????????? | +----------------------------------------------------+ Best States ------------- Heat Dissipation 84 Energy Generation 39 Energy Capacity 555 Matter Stores 300 Matter Capacity 450 Sight Range 22 Robot Scan Range 15 Terrain Scan Range 20 Terrain Scan Density 85 Power Amplification 40 Armor Coverage 900 Resistance: KI 20 Propulsion Shielding 33 Weapon Cycling 20 Evasion (%) 63 Targeting Accuracy 10 Melee Accuracy 16 Armor Integrity Analysis 30 Recoil Reduction 4 Matter Filtering 30 Kinecelleration 40 Offensive Hacking 24 Defensive Hacking 12 Relay Coupler Types 2 Relay Coupler Value 62 Trap Extractor Capacity 4 Item Schematics ----------------- None Robot Schematics ------------------ None Fabricated ------------ Nothing Alien Tech Used ----------------- None Achievements -------------- None Challenges ------------ None Game ------ Seed DisruptorThunderPit Manual? 0 Play Time 02:37:08 Cumulative 596.6 hours Start 2022.03.19 @ 22:22:11 End 2022.03.20 @ 05:06:54 Sessions 3 Manual Loads 0 Difficulty Rogue Special Mode None Game No. 146 Rogue 115 Adventurer 31 Explorer 0 Win Type - Total 29 Types 24/0/2/3/0/0/0/0/0 Lore% 75 Gallery% 83 Achievement% 66 Wizard Run 0 Options --------- ASCII 0 Keyboard 0 Movement Arrows Keybinds 0 Fullscreen 1 Font 20/Terminus Map View 66x50 Tactical HUD 1 Map Filters NONE Filters NONE Steam 1 RUN: af6333a2-fdd7-484b-8c4d-27ed7b3938c9